Workbook

Sheet Accueil
A1: =NOW() -> 2016-08-10T09:53:47.170
D8: Roanne
D15: momo

Sheet Donnees
A1: Familles | B1: Poids livré en kg | C1: équipement de lavage | D1: Unité de lavage (Kg) | E1: TcycleL | F1: Séchoir | G1: TcycleS | H1: Calandre | I1: TcycleC | L1: CodeFamille | M1: PourCent Poids | N1: Code à 2 chiffres | O1: PourCent cumulés | P1: =L1 -> CodeFamille | Q1: =C1 -> équipement de lavage | R1: =D1 -> Unité de lavage (Kg) | S1: =H1 -> Calandre | T1: Temps total | V1: TcycleC | X1: Total Poids livré
A2: Blanchissage plat1 | B2: 20.95344828 | C2: 1 | D2: 50 | E2: 00:01:47 | F2: 5 | G2: 00:13:00 | H2: plat6 | I2: 3.671141662 | L2: =CONCATENATE(A2, " - ",N2) -> Blanchissage plat1 - 01 | M2: =B2/$X$2 -> 0.002981969828 | N2: 01 | O2: 0 | P2: =L2 -> Blanchissage plat1 - 01 | Q2: =C2 -> 1 | R2: =D2 -> 50 | S2: plat6 | T2: =E2+G2+I2 -> 3.681407865 | V2: 128.3260024 | W2: =V2/24/60 -> 0.08911527944 | X2: =SUM(B2:B100) -> 7026.713712
A3: Blanchissage plat6 | B3: 48.6 | C3: 4 | D3: 540 | E3: 00:00:00 | F3: 5 | G3: 00:13:00 | H3: plat3 | I3: 7.326007326 | L3: =CONCATENATE(A3, " - ",N3) -> Blanchissage plat6 - 02 | M3: =B3/$X$2 -> 0.006916462232 | N3: 02 | O3: =O2+M2 -> 0.002981969828 | P3: Blanchissage plat6 - 02 | Q3: =C3 -> 4 | R3: 540 | S3: plat3 | T3: =E3+G3+I3 -> 7.335035104 | V3: 59.42566326 | W3: =V3/24/60 -> 0.04126782171
A4: alése abs | B4: 28.30914169 | C4: 1 | D4: 50 | E4: 00:01:47 | F4: 6 | G4: 00:20:00 | H4: plat6 | I4: 12:06:40.252 | L4: alése abs - 03 | M4: 0.004028788258 | N4: 03 | O4: 0.00989843206 | P4: alése abs - 03 | Q4: 1 | R4: 50 | S4: plat6 | T4: 12:28:27.252 | V4: 128.3260024 | W4: 0.08911527944
A5: carré/gant | B5: 2.319337701 | C5: 1 | D5: 50 | E5: 00:01:47 | F5: 6 | G5: 00:20:00 | H5: plat6 | I5: 2.155787835 | L5: carré/gant - 04 | M5: 0.0003300743129 | N5: 04 | O5: 0.01392722032 | P5: carré/gant - 04 | Q5: 1 | R5: 50 | S5: plat6 | T5: 2.17091515 | V5: 128.3260024 | W5: 0.08911527944
A6: ch tab | B6: 6.869752889 | C6: 1 | D6: 50 | E6: 00:01:47 | F6: 1 | G6: 00:02:27 | H6: plat3 | I6: 11:52:58.475 | L6: ch tab - 05 | M6: 0.0009776622716 | N6: 05 | O6: 0.01425729463 | P6: ch tab - 05 | Q6: 1 | R6: 50 | S6: plat3 | T6: 11:57:12.475 | V6: 59.42566326 | W6: 0.04126782171
A7: chmal | B7: 12.5 | C7: 1 | D7: 50 | E7: 00:01:47 | F7: 6 | G7: 00:20:00 | H7: plat6 | I7: 3.076923077 | L7: chmal - 06 | M7: 0.001778925471 | N7: 06 | O7: 0.0152349569 | P7: chmal - 06 | Q7: 1 | R7: 50 | S7: plat6 | T7: 3.092050392 | V7: 122.756589 | W7: 0.08524763128
A8: couette/couv | B8: 64.55151515 | C8: 1 | D8: 50 | E8: 00:01:47 | F8: 6 | G8: 00:20:00 | H8: plat6 | I8: 14:52:18.635 | L8: couette/couv - 07 | M8: 0.00918658676 | N8: 07 | O8: 0.01701388237 | P8: couette/couv - 07 | Q8: 1 | R8: 50 | S8: plat6 | T8: 15:14:05.635 | V8: 122.756589 | W8: 0.08524763128
A9: drap petit | B9: 46.12719928 | C9: 1 | D9: 50 | E9: 00:01:47 | F9: 2 | G9: 00:02:30 | H9: plat1 | I9: 02:01:42.462 | L9: drap petit - 08 | M9: 0.006564547977 | N9: 08 | O9: 0.02620046913 | P9: drap petit - 08 | Q9: 1 | R9: 50 | S9: plat1 | T9: 02:05:59.462 | V9: 122.756589 | W9: 0.08524763128
A10: drap grand | B10: 61.19731625 | C10: 1 | D10: 50 | E10: 00:01:47 | F10: 2 | G10: 00:02:30 | H10: plat1 | I10: 01:44:34.785 | L10: drap grand - 09 | M10: 0.008709237172 | N10: 09 | O10: 0.03276501711 | P10: drap grand - 09 | Q10: 1 | R10: 50 | S10: plat1 | T10: 01:48:51.785 | V10: 122.756589 | W10: 0.08524763128
A11: drap bain | B11: 21.60184247 | C11: 1 | D11: 50 | E11: 00:01:47 | F11: 3 | G11: 00:22:00 | H11: plat4 | I11: 04:00:28.784 | L11: drap bain - 10 | M11: 0.003074245424 | N11: 10 | O11: 0.04147425428 | P11: drap bain - 10 | Q11: 1 | R11: 50 | S11: plat4 | T11: 04:24:15.784 | V11: 128.3260024 | W11: 0.08911527944
A12: drap bain luxe | B12: 29.86201063 | C12: 1 | D12: 50 | E12: 00:01:47 | F12: 3 | G12: 00:22:00 | H12: plat4 | I12: 03:08:39.672 | L12: drap bain luxe - 11 | M12: 0.004249783306 | N12: 11 | O12: 0.04454849971 | P12: drap bain luxe - 11 | Q12: 1 | R12: 50 | S12: plat4 | T12: 03:32:26.672 | V12: 128.3260024 | W12: 0.08911527944
A13: drap housse | B13: 29.79417432 | C13: 1 | D13: 50 | E13: 00:01:47 | F13: 6 | G13: 00:20:00 | H13: plat6 | I13: 10:35:56.523 | L13: drap housse - 12 | M13: 0.004240129248 | N13: 12 | O13: 0.04879828301 | P13: drap housse - 12 | Q13: 1 | R13: 50 | S13: plat6 | T13: 10:57:43.523 | V13: 128.3260024 | W13: 0.08911527944
A14: drap luxe | B14: 57.89299036 | C14: 1 | D14: 50 | E14: 00:01:47 | F14: 2 | G14: 00:02:30 | H14: plat1 | I14: 01:50:32.927 | L14: drap luxe - 13 | M14: 0.008238985212 | N14: 13 | O14: 0.05303841226 | P14: drap luxe - 13 | Q14: 1 | R14: 50 | S14: plat1 | T14: 01:54:49.927 | V14: 12.96848461 | W14: 0.009005892087
A15: grde al | B15: 25.48240689 | C15: 1 | D15: 50 | E15: 00:01:47 | F15: 2 | G15: 00:02:30 | H15: plat1 | I15: 03:04:40.309 | L15: grde al - 14 | M15: 0.003626504214 | N15: 14 | O15: 0.06127739747 | P15: grde al - 14 | Q15: 1 | R15: 50 | S15: plat1 | T15: 03:08:57.309 | V15: 122.756589 | W15: 0.08524763128
A16: nap .30 | B16: 607.6257106 | C16: 4 | D16: 540 | E16: 00:00:00 | F16: 1 | G16: 00:02:27 | H16: plat2 | I16: 2.064089005 | L16: nap .30 - 15 | M16: 0.08647366828 | N16: 15 | O16: 0.06490390169 | P16: nap .30 - 15 | Q16: 4 | R16: 540 | S16: plat2 | T16: 2.065790394 | V16: 59.42566326 | W16: 0.04126782171
A17: nap .50 | B17: 1649.825161 | C17: 4 | D17: 540 | E17: 00:00:00 | F17: 1 | G17: 00:02:27 | H17: plat2 | I17: 1.266996425 | L17: nap .50 - 16 | M17: 0.2347932801 | N17: 16 | O17: 0.15137757 | P17: nap .50 - 16 | Q17: 4 | R17: 540 | S17: plat2 | T17: 1.268697814 | V17: 12.96848461 | W17: 0.009005892087
A18: nap 12 | B18: 237.4345802 | C18: 4 | D18: 540 | E18: 00:00:00 | F18: 1 | G18: 00:02:27 | H18: plat2 | I18: 1.886524982 | L18: nap 12 - 17 | M18: 0.0337902738 | N18: 17 | O18: 0.3861708501 | P18: nap 12 - 17 | Q18: 4 | R18: 540 | S18: plat2 | T18: 1.888226371 | V18: 12.96848461 | W18: 0.009005892087
A19: nap 15 | B19: 393.0269343 | C19: 4 | D19: 540 | E19: 00:00:00 | F19: 1 | G19: 00:02:27 | H19: plat2 | I19: 1.367620063 | L19: nap 15 - 18 | M19: 0.05593324995 | N19: 18 | O19: 0.4199611239 | P19: nap 15 - 18 | Q19: 4 | R19: 540 | S19: plat2 | T19: 1.369321452 | V19: 122.756589 | W19: 0.08524763128
A20: nap 18 | B20: 456.8329138 | C20: 4 | D20: 540 | E20: 00:00:00 | F20: 1 | G20: 00:02:27 | H20: plat2 | I20: 1.17660419 | L20: nap 18 - 19 | M20: 0.06501373652 | N20: 19 | O20: 0.4758943738 | P20: nap 18 - 19 | Q20: 4 | R20: 540 | S20: plat2 | T20: 1.178305579 | V20: 122.756589 | W20: 0.08524763128
A21: nap 20 | B21: 543.5631459 | C21: 4 | D21: 540 | E21: 00:00:00 | F21: 1 | G21: 00:02:27 | H21: plat2 | I21: 1.281864304 | L21: nap 20 - 20 | M21: 0.07735666603 | N21: 20 | O21: 0.5409081104 | P21: nap 20 - 20 | Q21: 4 | R21: 540 | S21: plat2 | T21: 1.283565693 | V21: 122.756589 | W21: 0.08524763128
A22: nap 22 | B22: 713.838066 | C22: 4 | D22: 540 | E22: 00:00:00 | F22: 1 | G22: 00:02:27 | H22: plat2 | I22: 1.197935506 | L22: nap 22 - 21 | M22: 0.1015891774 | N22: 21 | O22: 0.6182647764 | P22: nap 22 - 21 | Q22: 4 | R22: 540 | S22: plat2 | T22: 1.199636895 | V22: 12.96848461 | W22: 0.009005892087
A23: nap 24 | B23: 820.7389236 | C23: 4 | D23: 540 | E23: 00:00:00 | F23: 1 | G23: 00:02:27 | H23: plat2 | I23: 1.041904972 | L23: nap 24 - 22 | M23: 0.1168026701 | N23: 22 | O23: 0.7198539538 | P23: nap 24 - 22 | Q23: 4 | R23: 540 | S23: plat2 | T23: 1.04360636 | V23: 122.756589 | W23: 0.08524763128
A24: npr | B24: 135 | C24: 4 | D24: 540 | E24: 00:00:00 | F24: 5 | G24: 00:13:00 | H24: plat7 | I24: 5.934065934 | L24: npr - 23 | M24: 0.01921239509 | N24: 23 | O24: 0.8366566239 | P24: npr - 23 | Q24: 4 | R24: 540 | S24: plat7 | T24: 5.943093712 | V24: 12.96848461 | W24: 0.009005892087
A25: npr 10 | B25: 170.1562983 | C25: 4 | D25: 540 | E25: 00:00:00 | F25: 1 | G25: 00:02:27 | H25: plat2 | I25: 2.12620164 | L25: npr 10 - 24 | M25: 0.02421562984 | N25: 24 | O25: 0.855869019 | P25: npr 10 - 24 | Q25: 4 | R25: 540 | S25: plat2 | T25: 2.127903029 | V25: 122.756589 | W25: 0.08524763128
A26: peignoir/cas | B26: 73.11280598 | C26: 1 | D26: 50 | E26: 00:01:47 | F26: 6 | G26: 00:20:00 | H26: plat6 | I26: 17:16:36.606 | L26: peignoir/cas - 25 | M26: 0.01040497863 | N26: 25 | O26: 0.8800846489 | P26: peignoir/cas - 25 | Q26: 1 | R26: 50 | S26: plat6 | T26: 17:38:23.606 | V26: 122.756589 | W26: 0.08524763128
A27: pte al | B27: 16.5 | C27: 1 | D27: 50 | E27: 00:01:47 | F27: 2 | G27: 00:02:30 | H27: plat1 | I27: 03:35:29.293 | L27: pte al - 26 | M27: 0.002348181622 | N27: 26 | O27: 0.8904896275 | P27: pte al - 26 | Q27: 1 | R27: 50 | S27: plat1 | T27: 03:39:46.293 | V27: 128.3260024 | W27: 0.08911527944
A28: sac | B28: 134.7989469 | C28: 4 | D28: 540 | E28: 00:00:00 | F28: 5 | G28: 00:13:00 | H28: plat6 | I28: 4.326443294 | L28: sac - 27 | M28: 0.01918378242 | N28: 27 | O28: 0.8928378091 | P28: sac - 27 | Q28: 4 | R28: 540 | S28: plat6 | T28: 4.335471071 | V28: 128.3260024 | W28: 0.08911527944
A29: serv éponge | B29: 9.474746255 | C29: 1 | D29: 50 | E29: 00:01:47 | F29: 3 | G29: 00:22:00 | H29: plat4 | I29: 07:49:04.993 | L29: serv éponge - 28 | M29: 0.001348389396 | N29: 28 | O29: 0.9120215915 | P29: serv éponge - 28 | Q29: 1 | R29: 50 | S29: plat4 | T29: 08:12:51.993 | V29: 316.442024 | W29: 0.2197514056
A30: serv éponge luxe | B30: 14.57234714 | C30: 1 | D30: 50 | E30: 00:01:47 | F30: 3 | G30: 00:22:00 | H30: plat4 | I30: 05:22:55.941 | L30: serv éponge luxe - 29 | M30: 0.002073849561 | N30: 29 | O30: 0.9133699809 | P30: serv éponge luxe - 29 | Q30: 1 | R30: 50 | S30: plat4 | T30: 05:46:42.941 | V30: 316.442024 | W30: 0.2197514056
A31: serv œil | B31: 33.27381034 | C31: 4 | D31: 540 | E31: 00:00:00 | F31: 5 | G31: 00:13:00 | H31: plat3 | I31: 5.716666118 | L31: serv œil - 30 | M31: 0.004735330299 | N31: 30 | O31: 0.9154438305 | P31: serv œil - 30 | Q31: 4 | R31: 540 | S31: plat3 | T31: 5.725693896 | V31: 316.442024 | W31: 0.2197514056
A32: serv tab gde | B32: 57.77824911 | C32: 4 | D32: 540 | E32: 00:00:00 | F32: 5 | G32: 00:13:00 | H32: plat3 | I32: 3.876253384 | L32: serv tab gde - 31 | M32: 0.008222655922 | N32: 31 | O32: 0.9201791608 | P32: serv tab gde - 31 | Q32: 4 | R32: 540 | S32: plat3 | T32: 3.885281162 | V32: 316.442024 | W32: 0.2197514056
A33: serv tab pte | B33: 42.66471769 | C33: 4 | D33: 540 | E33: 00:00:00 | F33: 5 | G33: 00:13:00 | H33: plat3 | I33: 4.172580709 | L33: serv tab pte - 32 | M33: 0.006071788242 | N33: 32 | O33: 0.9284018167 | P33: serv tab pte - 32 | Q33: 4 | R33: 540 | S33: plat3 | T33: 4.181608487 | V33: 316.442024 | W33: 0.2197514056
A34: serv tab pte | B34: 42.66471769 | C34: 4 | D34: 540 | E34: 00:00:00 | F34: 5 | G34: 00:13:00 | H34: plat7 | I34: 12.51774213 | L34: serv tab pte - 33 | M34: 0.006071788242 | N34: 33 | O34: 0.9344736049 | P34: =L34 -> serv tab pte - 33 | Q34: 4 | R34: 540 | S34: =H34 -> plat7 | T34: 12.52676991 | V34: 316.442024 | W34: 0.2197514056
A35: taie luxe | B35: 7.529084545 | C35: 1 | D35: 50 | E35: 00:01:47 | F35: 1 | G35: 00:02:27 | H35: plat7 | I35: 23:14:00.661 | L35: taie luxe - 34 | M35: 0.001071494422 | N35: 34 | O35: =O34+M34 -> 0.9405453932 | P35: taie luxe - 34 | Q35: 1 | R35: 50 | S35: plat7 | T35: 23:18:14.661 | V35: 316.442024 | W35: 0.2197514056
A36: tapis bain | B36: 12.01736739 | C36: 1 | D36: 50 | E36: 00:01:47 | F36: 3 | G36: 00:22:00 | H36: plat4 | I36: 06:13:59.434 | L36: tapis bain - 35 | M36: 0.001710240075 | N36: 35 | O36: 0.9416168876 | P36: tapis bain - 35 | Q36: 1 | R36: 50 | S36: plat4 | T36: 06:37:46.434 | V36: 128.3260024 | W36: 0.08911527944
A37: torchon | B37: 48.47982203 | C37: 4 | D37: 540 | E37: 00:00:00 | F37: 0 | G37: 00:00:00 | H37: plat3 | I37: 3.254801713 | L37: torchon - 36 | M37: 0.00689935922 | N37: 36 | O37: 0.9433271277 | P37: torchon - 36 | Q37: 4 | R37: 540 | S37: plat3 | T37: 3.254801713 | V37: 128.3260024 | W37: 0.08911527944
A38: set | B38: 43.2 | C38: 4 | D38: 540 | E38: 00:00:00 | F38: 1 | G38: 00:02:27 | H38: plat7 | I38: 13.39285714 | L38: set - 37 | M38: 0.006147966428 | N38: 37 | O38: 0.9502264869 | P38: set - 37 | Q38: 4 | R38: 540 | S38: plat7 | T38: 13.39455853 | V38: 316.442024 | W38: 0.2197514056
A39: serv_alim | B39: 27 | C39: 4 | D39: 540 | E39: 00:00:00 | F39: 5 | G39: 00:13:00 | H39: plat6 | I39: 24.54545455 | L39: serv_alim - 38 | M39: 0.003842479018 | N39: 38 | O39: 0.9563744533 | P39: serv_alim - 38 | Q39: 4 | R39: 540 | S39: plat6 | T39: 24.55448232 | V39: 59.42566326 | W39: 0.04126782171
A40: HC GD portrait | B40: 96.14979059 | C40: 1 | D40: 50 | E40: 00:01:47 | F40: 1 | G40: 00:02:27 | H40: plat1 | I40: 01:19:14.486 | L40: HC GD portrait - 39 | M40: 0.01368346492 | N40: 39 | O40: 0.9602169323 | P40: HC GD portrait - 39 | Q40: 1 | R40: 50 | S40: plat1 | T40: 01:23:28.486 | V40: 59.42566326 | W40: 0.04126782171
A41: HC GD portrait | B41: 96.14979059 | C41: 1 | D41: 50 | E41: 00:01:47 | F41: 1 | G41: 00:02:27 | H41: plat2 | I41: 02:26:23.948 | L41: HC GD portrait - 40 | M41: 0.01368346492 | N41: 40 | O41: 0.9739003973 | P41: HC GD portrait - 40 | Q41: 1 | R41: 50 | S41: plat2 | T41: 02:30:37.948 | V41: 59.42566326 | W41: 0.04126782171
A42: HC MOY portrait | B42: 63.74953831 | C42: 1 | D42: 50 | E42: 00:01:47 | F42: 1 | G42: 00:02:27 | H42: plat2 | I42: 02:53:29.400 | L42: HC MOY portrait - 41 | M42: 0.009072454198 | N42: 41 | O42: 0.9875838622 | P42: HC MOY portrait - 41 | Q42: 1 | R42: 50 | S42: plat2 | T42: 02:57:43.400 | V42: 59.42566326 | W42: 0.04126782171
A43: Taie | B43: 8.695107531 | C43: 1 | D43: 50 | E43: 00:01:47 | F43: 1 | G43: 00:02:27 | H43: plat3 | I43: 05:52:03.772 | L43: Taie - 42 | M43: 0.001237435861 | N43: 42 | O43: 0.9966563164 | P43: Taie - 42 | Q43: 1 | R43: 50 | S43: plat3 | T43: 05:56:17.772 | V43: 59.42566326 | W43: 0.04126782171
A44: tapis bain luxe | B44: 14.8 | C44: 1 | D44: 50 | E44: 00:01:47 | F44: 3 | G44: 00:22:00 | H44: plat4 | I44: 05:10:39.329 | L44: tapis bain luxe - 43 | M44: 0.002106247758 | N44: 43 | O44: 0.9978937522 | P44: tapis bain luxe - 43 | Q44: 1 | R44: 50 | S44: plat4 | T44: 05:34:26.329 | V44: 59.42566326 | W44: 0.04126782171
L45: - 44 | M45: 0 | N45: 44 | O45: 1 | P45: - 44 | Q45: 0 | R45: 0 | S45: 0 | T45: 00:00:00 | V45: 59.42566326 | W45: 0.04126782171
L46: - 45 | M46: 0 | N46: 45 | O46: 1 | P46: - 45 | Q46: 0 | R46: 0 | S46: 0 | T46: 00:00:00 | V46: 59.42566326 | W46: 0.04126782171
L47: - 46 | M47: 0 | N47: 46 | O47: 1 | P47: - 46 | Q47: 0 | R47: 0 | S47: 0 | T47: 00:00:00 | V47: 59.42566326 | W47: 0.04126782171
L48: - 47 | M48: 0 | N48: 47 | O48: 1 | P48: - 47 | Q48: 0 | R48: 0 | S48: 0 | T48: 00:00:00 | V48: 59.42566326 | W48: 0.04126782171
L49: - 48 | M49: 0 | N49: 48 | O49: 1 | P49: - 48 | Q49: 0 | R49: 0 | S49: 0 | T49: 00:00:00 | V49: 59.42566326 | W49: 0.04126782171
L50: - 49 | M50: 0 | N50: 49 | O50: 1 | P50: - 49 | Q50: 0 | R50: 0 | S50: 0 | T50: 00:00:00 | V50: 59.42566326 | W50: 0.04126782171
L51: - 50 | M51: 0 | N51: 50 | O51: 1 | P51: - 50 | Q51: 0 | R51: 0 | S51: 0 | T51: 00:00:00 | V51: 59.42566326 | W51: 0.04126782171
L52: - 51 | M52: 0 | N52: 51 | O52: 1 | P52: - 51 | Q52: 0 | R52: 0 | S52: 0 | T52: 00:00:00 | V52: 59.42566326 | W52: 0.04126782171
L53: - 52 | M53: =B53/$X$2 -> 0 | N53: 52 | O53: =O52+M52 -> 1 | P53: =L53 -> - 52 | Q53: =C53 -> 0 | R53: =D53 -> 0 | S53: =H53 -> 0 | T53: =E53+G53+I53 -> 00:00:00 | V53: 60.42566326 | W53: =V53/24/60 -> 0.04196226615
L54: - 53 | M54: 0 | N54: 53 | O54: 1 | P54: - 53 | Q54: 0 | R54: 0 | S54: 0 | T54: 00:00:00 | V54: 61.42566326 | W54: 0.0426567106
L55: - 54 | M55: 0 | N55: 54 | O55: 1 | P55: - 54 | Q55: 0 | R55: 0 | S55: 0 | T55: 00:00:00 | V55: 62.42566326 | W55: 0.04335115504
L56: - 55 | M56: 0 | N56: 55 | O56: 1 | P56: - 55 | Q56: 0 | R56: 0 | S56: 0 | T56: 00:00:00 | V56: 63.42566326 | W56: 0.04404559949
L57: - 56 | M57: 0 | N57: 56 | O57: 1 | P57: - 56 | Q57: 0 | R57: 0 | S57: 0 | T57: 00:00:00 | V57: 64.42566326 | W57: 0.04474004393
L58: - 57 | M58: 0 | N58: 57 | O58: 1 | P58: - 57 | Q58: 0 | R58: 0 | S58: 0 | T58: 00:00:00 | V58: 65.42566326 | W58: 0.04543448837
L59: - 58 | M59: 0 | N59: 58 | O59: 1 | P59: - 58 | Q59: 0 | R59: 0 | S59: 0 | T59: 00:00:00 | V59: 66.42566326 | W59: 0.04612893282
L60: - 59 | M60: 0 | N60: 59 | O60: 1 | P60: - 59 | Q60: 0 | R60: 0 | S60: 0 | T60: 00:00:00 | V60: 67.42566326 | W60: 0.04682337726
L61: - 60 | M61: 0 | N61: 60 | O61: 1 | P61: - 60 | Q61: 0 | R61: 0 | S61: 0 | T61: 00:00:00 | V61: 68.42566326 | W61: 0.04751782171

Sheet Ordonnancement
A1: Produit Tunnel | B1: Equipement lavage | C1: Calandre | E1: Produit Laveuse | F1: Equipement lavage | G1: Calandre
A2: HC MOY portrait - 41 | B2: 1 | C2: plat2
A3: ch tab - 05 | B3: 1 | C3: plat3
A4: tapis bain luxe - 43 | B4: 1 | C4: plat2
A5: serv éponge luxe - 29 | B5: 1 | C5: plat3
A6: drap petit - 08 | B6: 1 | C6: plat2
A7: couette/couv - 07 | B7: 1 | C7: plat3
A8: drap housse - 12 | B8: 1 | C8: plat2
A9: couette/couv - 07 | B9: 1 | C9: plat3
A10: serv éponge - 28 | B10: 1 | C10: plat2
A11: drap petit - 08 | B11: 1 | C11: plat3
A12: drap grand - 09 | B12: 1 | C12: plat2
A13: serv éponge - 28 | B13: 1 | C13: plat3
A14: peignoir/cas - 25 | B14: 1 | C14: plat2
A15: HC MOY portrait - 41 | B15: 1 | C15: plat3
A16: drap petit - 08 | B16: 1 | C16: plat2
A17: peignoir/cas - 25 | B17: 1 | C17: plat3
A18: serv éponge - 28 | B18: 1 | C18: plat2
A19: HC GD portrait - 40 | B19: 1 | C19: plat3
A20: HC GD portrait - 39 | B20: 1 | C20: plat2
A21: couette/couv - 07 | B21: 1 | C21: plat3
A22: HC GD portrait - 39 | B22: 1 | C22: plat2
A23: drap luxe - 13 | B23: 1 | C23: plat3 | I23: Vers tunnels | K23: Vers laveuses | O23: Vers tunnels
A24: drap petit - 08 | B24: 1 | C24: plat2 | I24: Choix familles Aléatoire | N24: Choix familles Imposé
A25: drap grand - 09 | B25: 1 | C25: plat3
A26: drap grand - 09 | B26: 1 | C26: plat2
A27: drap bain luxe - 11 | B27: 1 | C27: plat3
A28: couette/couv - 07 | B28: 1 | C28: plat2
A29: tapis bain luxe - 43 | B29: 1 | C29: plat3
A30: carré/gant - 04 | B30: 1 | C30: plat2
A31: couette/couv - 07 | B31: 1 | C31: plat3
A32: couette/couv - 07 | B32: 1 | C32: plat2
A33: HC GD portrait - 39 | B33: 1 | C33: plat3
A34: HC GD portrait - 39 | B34: 1 | C34: plat2
A35: drap luxe - 13 | B35: 1 | C35: plat3
A36: HC GD portrait - 40 | B36: 1 | C36: plat2
A37: HC GD portrait - 40 | B37: 1 | C37: plat3

Sheet Ordonna (hidden)
A1: Données | E1: Pour tirage au sort | L1: Sélection
A2: CodeFamille | B2: Calandre | C2: Tonnage (kg) | E2: en % | F2: % cumulés | G2: CodeFamille | H2: Calandre | K2: nap 22 - 21 | L2: CodeFamille | M2: Calandre
A3: =Donnees!L2 -> Blanchissage plat1 - 01 | B3: =Donnees!S2 -> plat6 | C3: =Donnees!B2 -> 20.95344828 | E3: =C3/$C$54 -> 0.002981969828 | F3: 0 | G3: =A3 -> Blanchissage plat1 - 01 | H3: =B3 -> plat6 | K3: nap 24 - 22 | L3: hous trav - 22 | M3: Plat5
A4: =Donnees!L3 -> Blanchissage plat6 - 02 | B4: =Donnees!S3 -> plat3 | C4: =Donnees!B3 -> 48.6 | E4: =C4/$C$54 -> 0.006916462232 | F4: =F3+E3 -> 0.002981969828 | G4: =A4 -> Blanchissage plat6 - 02 | H4: plat3 | K4: nap 22 - 21 | L4: drap grand - 16 | M4: Plat3
A5: =Donnees!L4 -> alése abs - 03 | B5: =Donnees!S4 -> plat6 | C5: =Donnees!B4 -> 28.30914169 | E5: 0.004028788258 | F5: =F4+E4 -> 0.00989843206 | G5: alése abs - 03 | H5: plat6 | K5: HC GD portrait - 39 | L5: drap 1/2 - 11 | M5: Plat4
A6: =Donnees!L5 -> carré/gant - 04 | B6: =Donnees!S5 -> plat6 | C6: =Donnees!B5 -> 2.319337701 | E6: 0.0003300743129 | F6: 0.01392722032 | G6: carré/gant - 04 | H6: plat6 | K6: nap .50 - 16 | L6: drap bain luxe - 14 | M6: Plat5
A7: =Donnees!L6 -> ch tab - 05 | B7: =Donnees!S6 -> plat3 | C7: =Donnees!B6 -> 6.869752889 | E7: 0.0009776622716 | F7: 0.01425729463 | G7: ch tab - 05 | H7: plat3 | K7: serv tab pte - 32
A8: =Donnees!L7 -> chmal - 06 | B8: =Donnees!S7 -> plat6 | C8: =Donnees!B7 -> 12.5 | E8: 0.001778925471 | F8: 0.0152349569 | G8: chmal - 06 | H8: plat6
A9: =Donnees!L8 -> couette/couv - 07 | B9: =Donnees!S8 -> plat6 | C9: =Donnees!B8 -> 64.55151515 | E9: 0.00918658676 | F9: 0.01701388237 | G9: couette/couv - 07 | H9: plat6
A10: =Donnees!L9 -> drap petit - 08 | B10: =Donnees!S9 -> plat1 | C10: =Donnees!B9 -> 46.12719928 | E10: 0.006564547977 | F10: 0.02620046913 | G10: drap petit - 08 | H10: plat1
A11: =Donnees!L10 -> drap grand - 09 | B11: =Donnees!S10 -> plat1 | C11: =Donnees!B10 -> 61.19731625 | E11: 0.008709237172 | F11: 0.03276501711 | G11: drap grand - 09 | H11: plat1
A12: =Donnees!L11 -> drap bain - 10 | B12: =Donnees!S11 -> plat4 | C12: =Donnees!B11 -> 21.60184247 | E12: 0.003074245424 | F12: 0.04147425428 | G12: drap bain - 10 | H12: plat4
A13: =Donnees!L12 -> drap bain luxe - 11 | B13: =Donnees!S12 -> plat4 | C13: =Donnees!B12 -> 29.86201063 | E13: 0.004249783306 | F13: 0.04454849971 | G13: drap bain luxe - 11 | H13: plat4
A14: =Donnees!L13 -> drap housse - 12 | B14: =Donnees!S13 -> plat6 | C14: =Donnees!B13 -> 29.79417432 | E14: 0.004240129248 | F14: 0.04879828301 | G14: drap housse - 12 | H14: plat6
A15: =Donnees!L14 -> drap luxe - 13 | B15: =Donnees!S14 -> plat1 | C15: =Donnees!B14 -> 57.89299036 | E15: 0.008238985212 | F15: 0.05303841226 | G15: drap luxe - 13 | H15: plat1
A16: =Donnees!L15 -> grde al - 14 | B16: =Donnees!S15 -> plat1 | C16: =Donnees!B15 -> 25.48240689 | E16: 0.003626504214 | F16: 0.06127739747 | G16: grde al - 14 | H16: plat1
A17: =Donnees!L16 -> nap .30 - 15 | B17: =Donnees!S16 -> plat2 | C17: =Donnees!B16 -> 607.6257106 | E17: 0.08647366828 | F17: 0.06490390169 | G17: nap .30 - 15 | H17: plat2
A18: =Donnees!L17 -> nap .50 - 16 | B18: =Donnees!S17 -> plat2 | C18: =Donnees!B17 -> 1649.825161 | E18: 0.2347932801 | F18: 0.15137757 | G18: nap .50 - 16 | H18: plat2
A19: =Donnees!L18 -> nap 12 - 17 | B19: =Donnees!S18 -> plat2 | C19: =Donnees!B18 -> 237.4345802 | E19: 0.0337902738 | F19: 0.3861708501 | G19: nap 12 - 17 | H19: plat2
A20: =Donnees!L19 -> nap 15 - 18 | B20: =Donnees!S19 -> plat2 | C20: =Donnees!B19 -> 393.0269343 | E20: 0.05593324995 | F20: 0.4199611239 | G20: nap 15 - 18 | H20: plat2
A21: =Donnees!L20 -> nap 18 - 19 | B21: =Donnees!S20 -> plat2 | C21: =Donnees!B20 -> 456.8329138 | E21: 0.06501373652 | F21: 0.4758943738 | G21: nap 18 - 19 | H21: plat2
A22: =Donnees!L21 -> nap 20 - 20 | B22: =Donnees!S21 -> plat2 | C22: =Donnees!B21 -> 543.5631459 | E22: 0.07735666603 | F22: 0.5409081104 | G22: nap 20 - 20 | H22: plat2
A23: =Donnees!L22 -> nap 22 - 21 | B23: =Donnees!S22 -> plat2 | C23: =Donnees!B22 -> 713.838066 | E23: 0.1015891774 | F23: 0.6182647764 | G23: nap 22 - 21 | H23: plat2
A24: =Donnees!L23 -> nap 24 - 22 | B24: =Donnees!S23 -> plat2 | C24: =Donnees!B23 -> 820.7389236 | E24: 0.1168026701 | F24: 0.7198539538 | G24: nap 24 - 22 | H24: plat2
A25: =Donnees!L24 -> npr - 23 | B25: =Donnees!S24 -> plat7 | C25: =Donnees!B24 -> 135 | E25: 0.01921239509 | F25: 0.8366566239 | G25: npr - 23 | H25: plat7
A26: =Donnees!L25 -> npr 10 - 24 | B26: =Donnees!S25 -> plat2 | C26: =Donnees!B25 -> 170.1562983 | E26: 0.02421562984 | F26: 0.855869019 | G26: npr 10 - 24 | H26: plat2
A27: =Donnees!L26 -> peignoir/cas - 25 | B27: =Donnees!S26 -> plat6 | C27: =Donnees!B26 -> 73.11280598 | E27: =C27/$C$54 -> 0.01040497863 | F27: 0.8800846489 | G27: peignoir/cas - 25 | H27: plat6
A28: =Donnees!L27 -> pte al - 26 | B28: =Donnees!S27 -> plat1 | C28: =Donnees!B27 -> 16.5 | E28: 0.002348181622 | F28: 0.8904896275 | G28: pte al - 26 | H28: plat1
A29: =Donnees!L28 -> sac - 27 | B29: =Donnees!S28 -> plat6 | C29: =Donnees!B28 -> 134.7989469 | E29: 0.01918378242 | F29: 0.8928378091 | G29: sac - 27 | H29: plat6
A30: =Donnees!L29 -> serv éponge - 28 | B30: =Donnees!S29 -> plat4 | C30: =Donnees!B29 -> 9.474746255 | E30: 0.001348389396 | F30: 0.9120215915 | G30: serv éponge - 28 | H30: plat4
A31: =Donnees!L30 -> serv éponge luxe - 29 | B31: =Donnees!S30 -> plat4 | C31: =Donnees!B30 -> 14.57234714 | E31: 0.002073849561 | F31: 0.9133699809 | G31: serv éponge luxe - 29 | H31: plat4
A32: =Donnees!L31 -> serv œil - 30 | B32: =Donnees!S31 -> plat3 | C32: =Donnees!B31 -> 33.27381034 | E32: 0.004735330299 | F32: 0.9154438305 | G32: serv œil - 30 | H32: plat3
A33: =Donnees!L32 -> serv tab gde - 31 | B33: =Donnees!S32 -> plat3 | C33: =Donnees!B32 -> 57.77824911 | E33: 0.008222655922 | F33: 0.9201791608 | G33: serv tab gde - 31 | H33: plat3
A34: =Donnees!L33 -> serv tab pte - 32 | B34: =Donnees!S33 -> plat3 | C34: =Donnees!B33 -> 42.66471769 | E34: 0.006071788242 | F34: 0.9284018167 | G34: serv tab pte - 32 | H34: plat3
A35: =Donnees!L34 -> serv tab pte - 33 | B35: =Donnees!S34 -> plat7 | C35: =Donnees!B34 -> 42.66471769 | E35: 0.006071788242 | F35: 0.9344736049 | G35: serv tab pte - 33 | H35: plat7
A36: =Donnees!L35 -> taie luxe - 34 | B36: =Donnees!S35 -> plat7 | C36: =Donnees!B35 -> 7.529084545 | E36: 0.001071494422 | F36: 0.9405453932 | G36: taie luxe - 34 | H36: plat7
A37: =Donnees!L36 -> tapis bain - 35 | B37: =Donnees!S36 -> plat4 | C37: =Donnees!B36 -> 12.01736739 | E37: 0.001710240075 | F37: 0.9416168876 | G37: tapis bain - 35 | H37: plat4
A38: =Donnees!L37 -> torchon - 36 | B38: =Donnees!S37 -> plat3 | C38: =Donnees!B37 -> 48.47982203 | E38: 0.00689935922 | F38: 0.9433271277 | G38: torchon - 36 | H38: plat3
A39: =Donnees!L38 -> set - 37 | B39: =Donnees!S38 -> plat7 | C39: =Donnees!B38 -> 43.2 | E39: 0.006147966428 | F39: 0.9502264869 | G39: set - 37 | H39: plat7
A40: =Donnees!L39 -> serv_alim - 38 | B40: =Donnees!S39 -> plat6 | C40: =Donnees!B39 -> 27 | E40: 0.003842479018 | F40: 0.9563744533 | G40: serv_alim - 38 | H40: plat6
A41: =Donnees!L40 -> HC GD portrait - 39 | B41: =Donnees!S40 -> plat1 | C41: =Donnees!B40 -> 96.14979059 | E41: 0.01368346492 | F41: 0.9602169323 | G41: HC GD portrait - 39 | H41: plat1
A42: =Donnees!L41 -> HC GD portrait - 40 | B42: =Donnees!S41 -> plat2 | C42: =Donnees!B41 -> 96.14979059 | E42: 0.01368346492 | F42: 0.9739003973 | G42: HC GD portrait - 40 | H42: plat2
A43: =Donnees!L42 -> HC MOY portrait - 41 | B43: =Donnees!S42 -> plat2 | C43: =Donnees!B42 -> 63.74953831 | E43: 0.009072454198 | F43: 0.9875838622 | G43: =A43 -> HC MOY portrait - 41 | H43: plat2
A44: =Donnees!L43 -> Taie - 42 | B44: =Donnees!S43 -> plat3 | C44: =Donnees!B43 -> 8.695107531 | E44: 0.001237435861 | F44: 0.9966563164 | G44: Taie - 42 | H44: plat3
A45: =Donnees!L44 -> tapis bain luxe - 43 | B45: =Donnees!S44 -> plat4 | C45: =Donnees!B44 -> 14.8 | E45: 0.002106247758 | F45: 0.9978937522 | G45: tapis bain luxe - 43 | H45: plat4
A46: =Donnees!L45 -> - 44 | B46: =Donnees!S45 -> 0 | C46: =Donnees!B45 -> 0 | E46: 0 | F46: 1 | G46: - 44 | H46: 0
A47: =Donnees!L46 -> - 45 | B47: =Donnees!S46 -> 0 | C47: =Donnees!B46 -> 0 | E47: 0 | F47: 1 | G47: - 45 | H47: 0
A48: =Donnees!L47 -> - 46 | B48: =Donnees!S47 -> 0 | C48: =Donnees!B47 -> 0 | E48: 0 | F48: 1 | G48: - 46 | H48: 0
A49: =Donnees!L48 -> - 47 | B49: =Donnees!S48 -> 0 | C49: =Donnees!B48 -> 0 | E49: =C49/$C$54 -> 0 | F49: 1 | G49: - 47 | H49: 0
A50: =Donnees!L49 -> - 48 | B50: =Donnees!S49 -> 0 | C50: =Donnees!B49 -> 0 | E50: 0 | F50: 1 | G50: - 48 | H50: 0
A51: =Donnees!L50 -> - 49 | B51: =Donnees!S50 -> 0 | C51: =Donnees!B50 -> 0 | E51: 0 | F51: 1 | G51: - 49 | H51: 0
A52: =Donnees!L51 -> - 50 | B52: =Donnees!S51 -> 0 | C52: =Donnees!B51 -> 0 | E52: 0 | F52: 1 | G52: - 50 | H52: 0
A53: =Donnees!L52 -> - 51 | B53: =Donnees!S52 -> 0 | C53: =Donnees!B52 -> 0 | E53: 0 | F53: 1 | G53: - 51 | H53: 0
C54: =SUM(C3:C53) -> 7026.713712 | F54: 1

Sheet Usine
U1: Equipements de lavage | Z1: Lavage | AC1: Approvisionnement | AH1: Séchoir | AK1: Approvisionnement | AP1: Calandre | AR1: Sortie | AS1: Heure de Sortie | AT1: Commentaire calandre | AU1: Durée
A2: Vers tunnel | G2: Vers laveuses | U2: n° | V2: Modèle | AC2: n° | AD2: Modèle | AK2: n° | AL2: Modèle | AU2: =SUM(SUMIF($A$3:$A$40,AR2,$D$3:$D$40),SUMIF($G$3:$G$40,AR2,$J$3:$J$40)) -> 0
A3: Produit Tunnel | B3: Calandre | C3: Entrée | D3: Durée | E3: Sortie | G3: Produit Laveuses | H3: Calandre | I3: Entrée | J3: Durée | K3: Sortie | N3: Tonnage semaine | O3: 1000 | T3: Machine | U3: 1 | V3: 1 | W3: Tunnel | AB3: Machine | AC3: 1 | AD3: 0 | AJ3: Machine | AK3: 1 | AL3: plat1 | AU3: =SUM(SUMIF($A$3:$A$40,AR3,$D$3:$D$40),SUMIF($G$3:$G$40,AR3,$J$3:$J$40)) -> 0
D4: =IF(C4="","",VLOOKUP(A4,Donnees!$P$2:$T$61,5,FALSE)) ->  | E4: =IF(C4="","",C4+D4) ->  | J4: =IF(I4="","",VLOOKUP(G4,Donnees!$P$2:$U$40,5)) ->  | K4: =IF(I4="","",I4+J4) ->  | N4: Débit total | O4: =(SUM(AP3,AP9,AP15,AP21,AP27,AP33)/SUM(AU2:AU45)) ->  | T4: Produit | AB4: Produit | AJ4: Produit | AU4: 0
D5: =IF(C5="","",VLOOKUP(A5,Donnees!$P$2:$T$61,5,FALSE)) ->  | E5: =IF(C5="","",C5+D5) ->  | J5: =IF(I5="","",VLOOKUP(G5,Donnees!$P$2:$U$40,5)) ->  | K5: =IF(I5="","",I5+J5) ->  | T5: Quantité | AB5: Quantité | AJ5: Quantité | AU5: 0
D6: =IF(C6="","",VLOOKUP(A6,Donnees!$P$2:$T$61,5,FALSE)) ->  | J6: =IF(I6="","",VLOOKUP(G6,Donnees!$P$2:$U$40,5)) ->  | N6: Heure départ | O6: 0.25 | T6: Heure entrée | AB6: Heure entrée | AJ6: Heure entrée | AU6: 0
D7: =IF(C7="","",VLOOKUP(A7,Donnees!$P$2:$T$61,5,FALSE)) ->  | J7: =IF(I7="","",VLOOKUP(G7,Donnees!$P$2:$U$40,5)) ->  | N7: Heure fin | O7: 1.25 | T7: Durée | AB7: Durée | AJ7: Durée | AU7: 0
D8: =IF(C8="","",VLOOKUP(A8,Donnees!$P$2:$T$61,5,FALSE)) ->  | J8: =IF(I8="","",VLOOKUP(G8,Donnees!$P$2:$U$40,5)) ->  | N8: Heure simulée | T8: Heure sortie | AB8: Heure sortie | AJ8: Heure sortie | AU8: 0
D9: =IF(C9="","",VLOOKUP(A9,Donnees!$P$2:$T$61,5,FALSE)) ->  | J9: =IF(I9="","",VLOOKUP(G9,Donnees!$P$2:$U$40,5)) ->  | AB9: Machine | AC9: 2 | AD9: 1 | AJ9: Machine | AK9: 2 | AL9: plat2 | AU9: 0
D10: =IF(C10="","",VLOOKUP(A10,Donnees!$P$2:$T$61,5,FALSE)) ->  | J10: =IF(I10="","",VLOOKUP(G10,Donnees!$P$2:$U$40,5)) ->  | AB10: Produit | AJ10: Produit | AU10: 0
D11: =IF(C11="","",VLOOKUP(A11,Donnees!$P$2:$T$61,5,FALSE)) ->  | J11: =IF(I11="","",VLOOKUP(G11,Donnees!$P$2:$U$40,5)) ->  | AB11: Quantité | AJ11: Quantité | AU11: 0
D12: =IF(C12="","",VLOOKUP(A12,Donnees!$P$2:$T$61,5,FALSE)) ->  | J12: =IF(I12="","",VLOOKUP(G12,Donnees!$P$2:$U$40,5)) ->  | AB12: Heure entrée | AJ12: Heure entrée | AU12: 0
D13: =IF(C13="","",VLOOKUP(A13,Donnees!$P$2:$T$61,5,FALSE)) ->  | J13: =IF(I13="","",VLOOKUP(G13,Donnees!$P$2:$U$40,5)) ->  | AB13: Durée | AJ13: Durée | AU13: 0
D14: =IF(C14="","",VLOOKUP(A14,Donnees!$P$2:$T$61,5,FALSE)) ->  | J14: =IF(I14="","",VLOOKUP(G14,Donnees!$P$2:$U$40,5)) ->  | AB14: Heure sortie | AJ14: Heure sortie | AU14: 0
D15: =IF(C15="","",VLOOKUP(A15,Donnees!$P$2:$T$61,5,FALSE)) ->  | J15: =IF(I15="","",VLOOKUP(G15,Donnees!$P$2:$U$40,5)) ->  | T15: Machine | U15: 3 | V15: 4 | W15: Laveuse | AB15: Machine | AC15: 3 | AD15: 2 | AJ15: Machine | AK15: 3 | AL15: plat3 | AU15: 0
D16: =IF(C16="","",VLOOKUP(A16,Donnees!$P$2:$T$61,5,FALSE)) ->  | J16: =IF(I16="","",VLOOKUP(G16,Donnees!$P$2:$U$40,5)) ->  | T16: Produit | AB16: Produit | AJ16: Produit | AU16: 0
D17: =IF(C17="","",VLOOKUP(A17,Donnees!$P$2:$T$61,5,FALSE)) ->  | J17: =IF(I17="","",VLOOKUP(G17,Donnees!$P$2:$U$40,5)) ->  | T17: Quantité | AB17: Quantité | AJ17: Quantité | AU17: 0
D18: =IF(C18="","",VLOOKUP(A18,Donnees!$P$2:$T$61,5,FALSE)) ->  | J18: =IF(I18="","",VLOOKUP(G18,Donnees!$P$2:$U$40,5)) ->  | T18: Heure entrée | AB18: Heure entrée | AJ18: Heure entrée | AU18: 0
D19: =IF(C19="","",VLOOKUP(A19,Donnees!$P$2:$T$61,5,FALSE)) ->  | J19: =IF(I19="","",VLOOKUP(G19,Donnees!$P$2:$U$40,5)) ->  | T19: Durée | AB19: Durée | AJ19: Durée | AU19: 0
D20: =IF(C20="","",VLOOKUP(A20,Donnees!$P$2:$T$61,5,FALSE)) ->  | J20: =IF(I20="","",VLOOKUP(G20,Donnees!$P$2:$U$40,5)) ->  | T20: Heure sortie | AB20: Heure sortie | AJ20: Heure sortie | AU20: 0
D21: =IF(C21="","",VLOOKUP(A21,Donnees!$P$2:$T$61,5,FALSE)) ->  | J21: =IF(I21="","",VLOOKUP(G21,Donnees!$P$2:$U$40,5)) ->  | T21: Machine | U21: 4 | V21: 4 | W21: Laveuse | AB21: Machine | AC21: 4 | AD21: 3 | AJ21: Machine | AK21: 4 | AL21: plat4 | AU21: 0
D22: =IF(C22="","",VLOOKUP(A22,Donnees!$P$2:$T$61,5,FALSE)) ->  | J22: =IF(I22="","",VLOOKUP(G22,Donnees!$P$2:$U$40,5)) ->  | T22: Produit | AB22: Produit | AJ22: Produit | AU22: 0
D23: =IF(C23="","",VLOOKUP(A23,Donnees!$P$2:$T$61,5,FALSE)) ->  | J23: =IF(I23="","",VLOOKUP(G23,Donnees!$P$2:$U$40,5)) ->  | T23: Quantité | AB23: Quantité | AJ23: Quantité | AU23: 0
D24: =IF(C24="","",VLOOKUP(A24,Donnees!$P$2:$T$61,5,FALSE)) ->  | J24: =IF(I24="","",VLOOKUP(G24,Donnees!$P$2:$U$40,5)) ->  | T24: Heure entrée | AB24: Heure entrée | AJ24: Heure entrée | AU24: 0
D25: =IF(C25="","",VLOOKUP(A25,Donnees!$P$2:$T$61,5,FALSE)) ->  | J25: =IF(I25="","",VLOOKUP(G25,Donnees!$P$2:$U$40,5)) ->  | T25: Durée | AB25: Durée | AJ25: Durée | AU25: 0
D26: =IF(C26="","",VLOOKUP(A26,Donnees!$P$2:$T$61,5,FALSE)) ->  | J26: =IF(I26="","",VLOOKUP(G26,Donnees!$P$2:$U$40,5)) ->  | T26: Heure sortie | AB26: Heure sortie | AJ26: Heure sortie | AU26: 0
D27: =IF(C27="","",VLOOKUP(A27,Donnees!$P$2:$T$61,5,FALSE)) ->  | J27: =IF(I27="","",VLOOKUP(G27,Donnees!$P$2:$U$40,5)) ->  | T27: Machine | U27: 5 | V27: 4 | W27: Laveuse | AB27: Machine | AC27: 5 | AD27: 4 | AJ27: Machine | AK27: 5 | AL27: plat5 | AU27: 0
D28: =IF(C28="","",VLOOKUP(A28,Donnees!$P$2:$T$61,5,FALSE)) ->  | J28: =IF(I28="","",VLOOKUP(G28,Donnees!$P$2:$U$40,5)) ->  | T28: Produit | AB28: Produit | AJ28: Produit | AU28: 0
D29: =IF(C29="","",VLOOKUP(A29,Donnees!$P$2:$T$61,5,FALSE)) ->  | J29: =IF(I29="","",VLOOKUP(G29,Donnees!$P$2:$U$40,5)) ->  | T29: Quantité | AB29: Quantité | AJ29: Quantité | AU29: 0
D30: =IF(C30="","",VLOOKUP(A30,Donnees!$P$2:$T$61,5,FALSE)) ->  | J30: =IF(I30="","",VLOOKUP(G30,Donnees!$P$2:$U$40,5)) ->  | T30: Heure entrée | AB30: Heure entrée | AJ30: Heure entrée | AU30: 0
D31: =IF(C31="","",VLOOKUP(A31,Donnees!$P$2:$T$61,5,FALSE)) ->  | J31: =IF(I31="","",VLOOKUP(G31,Donnees!$P$2:$U$40,5)) ->  | T31: Durée | AB31: Durée | AJ31: Durée | AU31: 0
D32: =IF(C32="","",VLOOKUP(A32,Donnees!$P$2:$T$61,5,FALSE)) ->  | J32: =IF(I32="","",VLOOKUP(G32,Donnees!$P$2:$U$40,5)) ->  | T32: Heure sortie | AB32: Heure sortie | AJ32: Heure sortie | AU32: 0
D33: =IF(C33="","",VLOOKUP(A33,Donnees!$P$2:$T$61,5,FALSE)) ->  | J33: =IF(I33="","",VLOOKUP(G33,Donnees!$P$2:$U$40,5)) ->  | T33: Machine | U33: 6 | V33: 5 | W33: Laveuse | AB33: Machine | AC33: 6 | AD33: 5 | AJ33: Machine | AK33: 2 | AL33: plat6 | AU33: 0
D34: =IF(C34="","",VLOOKUP(A34,Donnees!$P$2:$T$61,5,FALSE)) ->  | J34: =IF(I34="","",VLOOKUP(G34,Donnees!$P$2:$U$40,5)) ->  | T34: Produit | AB34: Produit | AJ34: Produit | AU34: 0
D35: =IF(C35="","",VLOOKUP(A35,Donnees!$P$2:$T$61,5,FALSE)) ->  | J35: =IF(I35="","",VLOOKUP(G35,Donnees!$P$2:$U$40,5)) ->  | T35: Quantité | AB35: Quantité | AJ35: Quantité | AU35: 0
D36: =IF(C36="","",VLOOKUP(A36,Donnees!$P$2:$T$61,5,FALSE)) ->  | J36: =IF(I36="","",VLOOKUP(G36,Donnees!$P$2:$U$40,5)) ->  | T36: Heure entrée | AB36: Heure entrée | AJ36: Heure entrée | AU36: 0
D37: =IF(C37="","",VLOOKUP(A37,Donnees!$P$2:$T$61,5,FALSE)) ->  | J37: =IF(I37="","",VLOOKUP(G37,Donnees!$P$2:$U$40,5)) ->  | T37: Durée | AB37: Durée | AJ37: Durée | AU37: 0
D38: =IF(C38="","",VLOOKUP(A38,Donnees!$P$2:$T$61,5,FALSE)) ->  | J38: =IF(I38="","",VLOOKUP(G38,Donnees!$P$2:$U$40,5)) ->  | T38: Heure sortie | AB38: Heure sortie | AJ38: Heure sortie | AU38: 0
D39: =IF(C39="","",VLOOKUP(A39,Donnees!$P$2:$T$61,5,FALSE)) ->  | J39: =IF(I39="","",VLOOKUP(G39,Donnees!$P$2:$U$40,5)) ->  | T39: Machine | U39: 7 | V39: 5 | W39: Laveuse | AB39: Machine | AC39: 7 | AD39: 6
D40: =IF(C40="","",VLOOKUP(A40,Donnees!$P$2:$T$61,5,FALSE)) ->  | J40: =IF(I40="","",VLOOKUP(G40,Donnees!$P$2:$U$40,5)) ->  | T40: Produit | AB40: Produit
T41: Quantité | AB41: Quantité
T42: Heure entrée | AB42: Heure entrée
T43: Durée | AB43: Durée
T44: Heure sortie | AB44: Heure sortie
T45: Machine | U45: 8 | V45: 5 | W45: Laveuse
T46: Produit
T47: Quantité
T48: Heure entrée
T49: Durée
T50: Heure sortie

Sheet Commentaires
A1: N° | B1: Commentaires | C1: Centre | D1: Débit Total
A2: 1 | D2: 139
A3: 2 | D3: 25
A4: 3 | D4: 85
A5: 4 | D5: 500
A6: 5
A7: 6
A8: 7
A9: 8
A10: 9
A11: 10
A12: 11
A13: 12
A14: 13
A15: 14
A16: 15
A17: 16
A18: 17
A19: 18
A20: 19
A21: 20
A22: 21
A23: 22
A24: 23
A25: 24
A26: 25
A27: 26
A28: 27
A29: 28
A30: 29
A31: 30
A32: 31
A33: 32
A34: 33
A35: 34
A36: 35
A37: 36
A38: 37
A39: 38
A40: 39
A41: 40

Sheet Informations (hidden)
A1: Ceci est un "poste de travail" | J1: le poste de travail est un "modèle" applicable aux séchoirs et aux calendreuses
J3: Qmin, Qmax non utilisés. Il pourrait être envisagé que la machine n'accepte que des quantités minimales et maximales, le produit restant en attente si quantité insuffisante
C4: n° | D4: Modèle | E4: Qmin | F4: Qmax | H4: Tot | J4: Chaque machine a un n° particulier, mais plusieurs machines peuvent être du même "Modèle". Chaque produit est travaillé par un modèle particulier (non prévu: produit pouvant être traité par plusieurs modèles différents)
B5: Machine | C5: 1 | D5: 0 | J5: description de la machine - dernière colonne = la machine elle-même, les 5 colonnes qui précèdent = Approvisionnement = file d'attente avant d'entrer dans la machine
B6: Produit | J6: indique le code du produit à travailler
B7: Quantité | J7: indique la quantité de ce produit
B8: Heure entrée | J8: heure d'entrée du produit au point indiqué
B9: Durée | J9: durée du traitement | N9: est une fonction du produit
B10: Heure sortie | J10: heure de sortie (= heure d'entrée + durée)
C11: file d'attente | H11: machine
C14: la file d'attente ne correspond pas nécessairement à une réalité physique
C15: mais elle permet dans la simulation de localiser les points à problème: là où "ça n'avance pas"
B18: Simulation:
B19: se fait en partant des sorties vers l'entrée
B20: 1) sur chaque machine pour faire "sortir" les produits + poussée de la file
B21: quand un produit a été traité (heure sortie atteinte),
C22: ce produit est "sorti" de la machine (cellule à droite de la machine)
C23: les produits en file d'attente (approvisionnement) sont décalés versla droite: un nouveau produit entre donc dans la machine (s'il y en avait dans la file)
B24: 2) sur chaque produit "sorti", déterminer son poste de travail suivant
C25: cela peut être directement en machine ou dans la file d'approvisionnement de la machine
C26: après la dernière machine (calandreuse), le produit est enregistré en Sortie finale
B28: Certains produits ne doivent pas passer au séchage, ou à la calendreuse.
B29: Ces produits vont alors "sauter" ce poste, et être placés en "sortie" du poste (après la dernière machine de ce poste)
B30: Vu ces sauts, il faut reprendre la partie (2) jusqu'au moment où il n'y a plus de produit en restant en sortie
B35: Indispensable de laisser la colonne K:K de la feuille donnés vide pour éviter que un tri ou un filtre dans la plage A:J ne vienne modifier les formules se trouvant dans les colonnes suivantes.
